[Event "Early-Titled-Tuesday-Blitz-March-19-2024"]
[Site "Chess.com"]
[Date "2024.03.19"]
[Round "10"]
[White "aljado"]
[Black "Sofia_Blokhin"]
[Result "1-0"]
[WhiteElo "2128"]
[BlackElo "2239"]
[TimeControl "180+1"]
[EndTime "9:52:23 PDT"]
[Termination "aljado won by checkmate"]

1. e4 {[%clk 0:03:00.9]} 1... c5 {[%clk 0:02:59.7]} 2. Nf3 {[%clk 0:03:00.8]}
2... e6 {[%clk 0:02:59.7]} 3. d4 {[%clk 0:02:58.3]} 3... cxd4 {[%clk 0:02:59.8]}
4. Nxd4 {[%clk 0:02:58.8]} 4... a6 {[%clk 0:03:00.2]} 5. g3 {[%clk 0:02:58.3]}
5... Nf6 {[%clk 0:02:55.6]} 6. Bg2 {[%clk 0:02:57.6]} 6... Qc7 {[%clk 0:02:56]}
7. O-O {[%clk 0:02:53.7]} 7... d6 {[%clk 0:02:54.6]} 8. Nc3 {[%clk 0:02:52]}
8... Be7 {[%clk 0:02:54.8]} 9. Be3 {[%clk 0:02:49.4]} 9... O-O {[%clk
0:02:54.4]} 10. Qe2 {[%clk 0:02:48.4]} 10... Nc6 {[%clk 0:02:53.5]} 11. Rad1
{[%clk 0:02:39.9]} 11... Na5 {[%clk 0:02:47.2]} 12. Kh1 {[%clk 0:02:33.7]} 12...
Nc4 {[%clk 0:02:46.7]} 13. Bc1 {[%clk 0:02:32.9]} 13... Rb8 {[%clk 0:02:45.7]}
14. f4 {[%clk 0:02:24.3]} 14... b5 {[%clk 0:02:45]} 15. a3 {[%clk 0:02:22.1]}
15... Bb7 {[%clk 0:02:36.5]} 16. g4 {[%clk 0:02:20.8]} 16... Nxa3 {[%clk
0:02:28]} 17. g5 {[%clk 0:02:07.4]} 17... Nd7 {[%clk 0:02:20.9]} 18. f5 {[%clk
0:02:06.9]} 18... e5 {[%clk 0:02:15.4]} 19. f6 {[%clk 0:02:04.9]} 19... Bd8
{[%clk 0:02:02.9]} 20. Nf5 {[%clk 0:01:57.1]} 20... gxf6 {[%clk 0:01:48.9]} 21.
gxf6 {[%clk 0:01:42.1]} 21... Nxf6 {[%clk 0:01:48.4]} 22. Bh6 {[%clk 0:01:36.1]}
22... Re8 {[%clk 0:01:40.7]} 23. Qf3 {[%clk 0:01:33.4]} 23... Kh8 {[%clk
0:01:20.9]} 24. Bg7+ {[%clk 0:01:31.6]} 24... Kg8 {[%clk 0:01:20.4]} 25. Qg3
{[%clk 0:01:28]} 25... Nh5 {[%clk 0:01:19.9]} 26. Nh6# {[%clk 0:01:27.1]} 1-0

[Event "Early-Titled-Tuesday-Blitz-March-19-2024"]
[Site "Chess.com"]
[Date "2024.03.19"]
[Round "10"]
[White "nicolasbatista3"]
[Black "MatyChess1"]
[Result "0-1"]
[WhiteElo "2475"]
[BlackElo "2639"]
[TimeControl "180+1"]
[EndTime "9:53:12 PDT"]
[Termination "MatyChess1 won by resignation"]

1. d4 {[%clk 0:02:57.8]} 1... Nf6 {[%clk 0:02:59.9]} 2. c4 {[%clk 0:02:57.4]}
2... e6 {[%clk 0:02:58.7]} 3. Nc3 {[%clk 0:02:56.9]} 3... Bb4 {[%clk 0:02:59.3]}
4. f3 {[%clk 0:02:57.6]} 4... c5 {[%clk 0:02:59]} 5. d5 {[%clk 0:02:57.6]} 5...
b5 {[%clk 0:02:59.2]} 6. e4 {[%clk 0:02:57.4]} 6... O-O {[%clk 0:02:57.9]} 7.
Be3 {[%clk 0:02:53.5]} 7... exd5 {[%clk 0:02:56.7]} 8. cxd5 {[%clk 0:02:51.1]}
8... a6 {[%clk 0:02:56.4]} 9. a3 {[%clk 0:02:46.2]} 9... Bxc3+ {[%clk
0:02:55.9]} 10. bxc3 {[%clk 0:02:46.9]} 10... d6 {[%clk 0:02:55.2]} 11. Bd3
{[%clk 0:02:37.5]} 11... Re8 {[%clk 0:02:55.3]} 12. Ne2 {[%clk 0:02:37]} 12...
Nxd5 {[%clk 0:02:55]} 13. exd5 {[%clk 0:02:12.2]} 13... Rxe3 {[%clk 0:02:55.1]}
14. Be4 {[%clk 0:02:11.9]} 14... Qg5 {[%clk 0:02:45.7]} 15. Qd2 {[%clk
0:02:00.6]} 15... Qxg2 {[%clk 0:02:43]} 16. Rf1 {[%clk 0:01:02]} 16... Rxe4
{[%clk 0:02:31.3]} 17. fxe4 {[%clk 0:01:00.2]} 17... Qxe4 {[%clk 0:02:31.7]} 18.
O-O-O {[%clk 0:00:52.8]} 18... Bf5 {[%clk 0:02:29.4]} 19. Kb2 {[%clk 0:00:50.8]}
19... Bg6 {[%clk 0:02:22.6]} 20. Nf4 {[%clk 0:00:46.1]} 20... Nd7 {[%clk
0:02:20.4]} 21. Rde1 {[%clk 0:00:41.7]} 21... Qa4 {[%clk 0:02:09.3]} 22. Nxg6
{[%clk 0:00:17.7]} 22... hxg6 {[%clk 0:02:10.2]} 23. Qf4 {[%clk 0:00:17.8]}
23... Qxf4 {[%clk 0:02:06.4]} 24. Rxf4 {[%clk 0:00:18.7]} 24... Ne5 {[%clk
0:02:06.3]} 25. a4 {[%clk 0:00:18.1]} 25... Nd3+ {[%clk 0:01:56.5]} 26. Kb3
{[%clk 0:00:13.4]} 26... Nxf4 {[%clk 0:01:48.4]} 0-1

[Event "Early-Titled-Tuesday-Blitz-March-19-2024"]
[Site "Chess.com"]
[Date "2024.03.19"]
[Round "10"]
[White "venturov"]
[Black "Lennis93"]
[Result "1-0"]
[WhiteElo "2525"]
[BlackElo "2746"]
[TimeControl "180+1"]
[EndTime "9:53:13 PDT"]
[Termination "venturov won by resignation"]

1. e4 {[%clk 0:03:00.9]} 1... c5 {[%clk 0:02:58.7]} 2. Nf3 {[%clk 0:03:01.2]}
2... e6 {[%clk 0:02:59]} 3. d3 {[%clk 0:03:01.6]} 3... Nc6 {[%clk 0:02:58.7]} 4.
g3 {[%clk 0:03:01.4]} 4... d5 {[%clk 0:02:58.9]} 5. Nbd2 {[%clk 0:03:01.5]} 5...
d4 {[%clk 0:02:59.4]} 6. Bg2 {[%clk 0:02:59.5]} 6... e5 {[%clk 0:02:59.8]} 7.
O-O {[%clk 0:03:00.2]} 7... Bd6 {[%clk 0:02:59.8]} 8. a4 {[%clk 0:02:59.1]} 8...
Nge7 {[%clk 0:02:59.2]} 9. Nc4 {[%clk 0:02:55.4]} 9... Bc7 {[%clk 0:02:59.1]}
10. Nh4 {[%clk 0:02:28]} 10... O-O {[%clk 0:02:54.8]} 11. f4 {[%clk 0:02:28.1]}
11... exf4 {[%clk 0:02:51.6]} 12. gxf4 {[%clk 0:02:27.2]} 12... f5 {[%clk
0:02:49.9]} 13. Qh5 {[%clk 0:02:10.1]} 13... Nb4 {[%clk 0:02:15.8]} 14. Na3
{[%clk 0:02:06.8]} 14... Be6 {[%clk 0:02:11.1]} 15. Bd2 {[%clk 0:02:03.1]} 15...
Qd7 {[%clk 0:02:00.1]} 16. Rae1 {[%clk 0:01:51.9]} 16... Bb6 {[%clk 0:01:55.5]}
17. b3 {[%clk 0:01:34.1]} 17... Rf6 {[%clk 0:01:44.9]} 18. exf5 {[%clk
0:01:16.2]} 18... Nxf5 {[%clk 0:01:42.9]} 19. Nxf5 {[%clk 0:01:14.1]} 19... Bxf5
{[%clk 0:01:39.7]} 20. Bxb4 {[%clk 0:01:10]} 20... cxb4 {[%clk 0:01:32.2]} 21.
Nc4 {[%clk 0:01:10.4]} 21... Rh6 {[%clk 0:01:25.2]} 22. Qf3 {[%clk 0:01:07.8]}
22... Rb8 {[%clk 0:01:15.6]} 23. Re5 {[%clk 0:01:07.1]} 23... Bc7 {[%clk
0:01:14.1]} 24. Qd5+ {[%clk 0:01:07.2]} 24... Be6 {[%clk 0:01:09.1]} 25. Rxe6
{[%clk 0:01:02.6]} 1-0

[Event "Early-Titled-Tuesday-Blitz-March-19-2024"]
[Site "Chess.com"]
[Date "2024.03.19"]
[Round "10"]
[White "Gryffindorac8"]
[Black "Durarbayli"]
[Result "0-1"]
[WhiteElo "2433"]
[BlackElo "2970"]
[TimeControl "180+1"]
[EndTime "9:53:19 PDT"]
[Termination "Durarbayli won by resignation"]

1. d4 {[%clk 0:03:00.9]} 1... Nf6 {[%clk 0:02:59.9]} 2. c4 {[%clk 0:03:00.6]}
2... e6 {[%clk 0:03:00.5]} 3. Nf3 {[%clk 0:03:00.7]} 3... b6 {[%clk 0:03:00.5]}
4. g3 {[%clk 0:02:59.7]} 4... Bb7 {[%clk 0:03:01.1]} 5. Bg2 {[%clk 0:02:59.7]}
5... Be7 {[%clk 0:03:01.8]} 6. O-O {[%clk 0:02:58.9]} 6... O-O {[%clk
0:03:02.5]} 7. Nc3 {[%clk 0:02:58.1]} 7... Ne4 {[%clk 0:03:03.1]} 8. Qc2 {[%clk
0:02:58.2]} 8... Nxc3 {[%clk 0:03:02.7]} 9. Qxc3 {[%clk 0:02:57.9]} 9... a5
{[%clk 0:03:03.3]} 10. Rd1 {[%clk 0:02:55.3]} 10... d6 {[%clk 0:02:58.9]} 11. b3
{[%clk 0:02:46.2]} 11... Nd7 {[%clk 0:02:58.3]} 12. Bb2 {[%clk 0:02:41]} 12...
Qe8 {[%clk 0:02:58.7]} 13. Qc2 {[%clk 0:02:30.6]} 13... f5 {[%clk 0:02:58.3]}
14. d5 {[%clk 0:02:01]} 14... e5 {[%clk 0:02:58.2]} 15. e4 {[%clk 0:01:58.9]}
15... f4 {[%clk 0:02:58]} 16. a3 {[%clk 0:01:52]} 16... Qh5 {[%clk 0:02:55.7]}
17. Qc3 {[%clk 0:01:32.6]} 17... Nc5 {[%clk 0:02:54.3]} 18. Re1 {[%clk
0:01:29.3]} 18... Bc8 {[%clk 0:02:51.7]} 19. Nd2 {[%clk 0:01:25.6]} 19... fxg3
{[%clk 0:02:32.8]} 20. hxg3 {[%clk 0:01:23.3]} 20... Bg5 {[%clk 0:02:31.7]} 21.
Nf1 {[%clk 0:01:13.3]} 21... Bg4 {[%clk 0:02:26.7]} 22. Bc1 {[%clk 0:01:11.6]}
22... Bxc1 {[%clk 0:02:22.8]} 23. Raxc1 {[%clk 0:01:12.5]} 23... Rf6 {[%clk
0:02:16.1]} 24. b4 {[%clk 0:01:10.7]} 24... Nd7 {[%clk 0:01:48]} 25. Nh2 {[%clk
0:00:49.8]} 25... Raf8 {[%clk 0:01:48.6]} 26. f3 {[%clk 0:00:33.1]} 26... Bxf3
{[%clk 0:01:48.3]} 27. Nxf3 {[%clk 0:00:30.7]} 27... Rxf3 {[%clk 0:01:49.2]} 28.
Re3 {[%clk 0:00:19.5]} 28... Rf2 {[%clk 0:01:46.9]} 29. Rc2 {[%clk 0:00:16.8]}
29... Qd1+ {[%clk 0:01:45.4]} 0-1

[Event "Early-Titled-Tuesday-Blitz-March-19-2024"]
[Site "Chess.com"]
[Date "2024.03.19"]
[Round "10"]
[White "Muracle"]
[Black "AlexTruskavetsky"]
[Result "1-0"]
[WhiteElo "2572"]
[BlackElo "2665"]
[TimeControl "180+1"]
[EndTime "9:53:25 PDT"]
[Termination "Muracle won on time"]

1. d4 {[%clk 0:02:53.3]} 1... Nf6 {[%clk 0:02:39.4]} 2. g3 {[%clk 0:02:51.8]}
2... e6 {[%clk 0:02:27.5]} 3. Bg2 {[%clk 0:02:52.1]} 3... d5 {[%clk 0:02:15.5]}
4. Nf3 {[%clk 0:02:53]} 4... Bd6 {[%clk 0:02:10.3]} 5. O-O {[%clk 0:02:53.9]}
5... O-O {[%clk 0:02:02.8]} 6. c4 {[%clk 0:02:53.9]} 6... Nbd7 {[%clk 0:01:59]}
7. Nc3 {[%clk 0:02:52.6]} 7... c6 {[%clk 0:01:54]} 8. Qc2 {[%clk 0:02:48.7]}
8... e5 {[%clk 0:01:45.2]} 9. cxd5 {[%clk 0:02:46.9]} 9... cxd5 {[%clk
0:01:40.5]} 10. Nb5 {[%clk 0:02:46]} 10... Bb8 {[%clk 0:01:27.8]} 11. dxe5
{[%clk 0:02:44.3]} 11... Nxe5 {[%clk 0:01:26.9]} 12. Nxe5 {[%clk 0:02:34.4]}
12... Bxe5 {[%clk 0:01:24.9]} 13. Bf4 {[%clk 0:02:35.3]} 13... Bxf4 {[%clk
0:01:17.9]} 14. gxf4 {[%clk 0:02:35.2]} 14... Be6 {[%clk 0:01:13.5]} 15. f5
{[%clk 0:02:30.6]} 15... Rc8 {[%clk 0:01:13.6]} 16. Qd3 {[%clk 0:02:30.9]} 16...
Bd7 {[%clk 0:01:09.9]} 17. Nd4 {[%clk 0:02:31.2]} 17... Qb6 {[%clk 0:01:03.5]}
18. Rfe1 {[%clk 0:02:32.1]} 18... Rfe8 {[%clk 0:00:54.8]} 19. b3 {[%clk
0:02:29.3]} 19... Ne4 {[%clk 0:00:52.8]} 20. Rac1 {[%clk 0:02:25]} 20... Rxc1
{[%clk 0:00:45.7]} 21. Rxc1 {[%clk 0:02:25.9]} 21... Nf6 {[%clk 0:00:40.8]} 22.
e3 {[%clk 0:02:24.8]} 22... Qa5 {[%clk 0:00:32.1]} 23. Rc2 {[%clk 0:02:23]}
23... Rc8 {[%clk 0:00:26.4]} 24. Rxc8+ {[%clk 0:02:21.8]} 24... Bxc8 {[%clk
0:00:24]} 25. Bf3 {[%clk 0:02:22.7]} 25... Bd7 {[%clk 0:00:20.2]} 26. Qc2 {[%clk
0:02:22]} 26... Kf8 {[%clk 0:00:18.7]} 27. Kg2 {[%clk 0:02:19.2]} 27... Ke7
{[%clk 0:00:14]} 28. Qb2 {[%clk 0:02:15.9]} 28... Qb6 {[%clk 0:00:14.2]} 29. a3
{[%clk 0:02:15.3]} 29... Ke8 {[%clk 0:00:09.4]} 30. Qc3 {[%clk 0:02:15.6]} 30...
a6 {[%clk 0:00:03.9]} 31. a4 {[%clk 0:02:15]} 31... Qd6 {[%clk 0:00:02.3]} 32.
a5 {[%clk 0:02:13.5]} 1-0

[Event "Early-Titled-Tuesday-Blitz-March-19-2024"]
[Site "Chess.com"]
[Date "2024.03.19"]
[Round "10"]
[White "mertfelin"]
[Black "JaackCamel"]
[Result "0-1"]
[WhiteElo "2342"]
[BlackElo "2215"]
[TimeControl "180+1"]
[EndTime "9:53:33 PDT"]
[Termination "JaackCamel won by resignation"]

1. e4 {[%clk 0:03:00.4]} 1... e6 {[%clk 0:02:59.3]} 2. d4 {[%clk 0:03:00.6]}
2... d5 {[%clk 0:02:57.7]} 3. Nc3 {[%clk 0:03:01.3]} 3... Bb4 {[%clk 0:02:55.3]}
4. e5 {[%clk 0:03:01.5]} 4... Ne7 {[%clk 0:02:54.4]} 5. a3 {[%clk 0:03:01.5]}
5... Bxc3+ {[%clk 0:02:53.6]} 6. bxc3 {[%clk 0:03:02.4]} 6... b6 {[%clk
0:02:52.8]} 7. Qg4 {[%clk 0:03:01.3]} 7... Ng6 {[%clk 0:02:51.8]} 8. h4 {[%clk
0:02:59.2]} 8... h5 {[%clk 0:02:51.8]} 9. Qf3 {[%clk 0:02:54.6]} 9... Ba6 {[%clk
0:02:50.1]} 10. Bxa6 {[%clk 0:02:55]} 10... Nxa6 {[%clk 0:02:49.7]} 11. Nh3
{[%clk 0:02:55.8]} 11... Nb8 {[%clk 0:02:47]} 12. Ng5 {[%clk 0:02:54.8]} 12...
Qd7 {[%clk 0:02:43.1]} 13. g3 {[%clk 0:02:52.6]} 13... Nc6 {[%clk 0:02:42.2]}
14. O-O {[%clk 0:02:49.9]} 14... Na5 {[%clk 0:02:37.9]} 15. a4 {[%clk 0:02:49]}
15... Nc4 {[%clk 0:02:37.7]} 16. Qd3 {[%clk 0:02:48.1]} 16... a5 {[%clk
0:02:33.6]} 17. Nh3 {[%clk 0:02:47]} 17... Ne7 {[%clk 0:02:30.5]} 18. Kg2 {[%clk
0:02:32.3]} 18... Nf5 {[%clk 0:02:28.3]} 19. Bg5 {[%clk 0:02:32.6]} 19... Qc6
{[%clk 0:02:24.1]} 20. Nf4 {[%clk 0:02:26.8]} 20... Kd7 {[%clk 0:02:20.6]} 21.
Nh3 {[%clk 0:02:17.3]} 21... Raf8 {[%clk 0:02:16.3]} 22. Bf4 {[%clk 0:02:08.5]}
22... Nb2 {[%clk 0:02:12.3]} 23. Qd2 {[%clk 0:02:06.8]} 23... Nxa4 {[%clk
0:02:11.8]} 24. Ra3 {[%clk 0:02:05.7]} 24... Nb2 {[%clk 0:02:11]} 25. Ra2 {[%clk
0:02:04.1]} 25... Nc4 {[%clk 0:02:10.6]} 26. Qd3 {[%clk 0:02:04.6]} 26... f6
{[%clk 0:02:08.1]} 27. exf6 {[%clk 0:02:04.2]} 27... gxf6 {[%clk 0:02:07.8]} 28.
Re1 {[%clk 0:02:04.8]} 28... Rhg8 {[%clk 0:01:54.1]} 29. Kh2 {[%clk 0:02:04.8]}
29... Rg4 {[%clk 0:01:23.3]} 30. Bc1 {[%clk 0:02:03]} 30... Rfg8 {[%clk
0:01:11.3]} 31. Nf4 {[%clk 0:01:55.1]} 31... Nxh4 {[%clk 0:01:00.8]} 32. Rxe6
{[%clk 0:01:52.6]} 32... Nd6 {[%clk 0:00:46]} 33. Qg6 {[%clk 0:01:05.2]} 0-1

[Event "Early-Titled-Tuesday-Blitz-March-19-2024"]
[Site "Chess.com"]
[Date "2024.03.19"]
[Round "10"]
[White "VladimirBugayev"]
[Black "yaguigor"]
[Result "0-1"]
[WhiteElo "2352"]
[BlackElo "2557"]
[TimeControl "180+1"]
[EndTime "9:53:42 PDT"]
[Termination "yaguigor won by resignation"]

1. e4 {[%clk 0:03:00.9]} 1... d6 {[%clk 0:02:47]} 2. Nc3 {[%clk 0:02:59.5]} 2...
c5 {[%clk 0:02:45.5]} 3. f4 {[%clk 0:02:54.7]} 3... Nc6 {[%clk 0:02:44.6]} 4.
Nf3 {[%clk 0:02:52.1]} 4... g6 {[%clk 0:02:37.8]} 5. Bc4 {[%clk 0:02:49.4]} 5...
Bg7 {[%clk 0:02:36.9]} 6. O-O {[%clk 0:02:49.9]} 6... e6 {[%clk 0:02:36.4]} 7.
d4 {[%clk 0:02:49.7]} 7... Nxd4 {[%clk 0:02:35.3]} 8. Be3 {[%clk 0:02:43.5]}
8... Nxf3+ {[%clk 0:02:31.8]} 9. Qxf3 {[%clk 0:02:43.2]} 9... Ne7 {[%clk
0:02:26.6]} 10. f5 {[%clk 0:02:43.1]} 10... exf5 {[%clk 0:02:24.8]} 11. exf5
{[%clk 0:02:43.4]} 11... gxf5 {[%clk 0:02:18.9]} 12. Bg5 {[%clk 0:02:30.7]}
12... Be6 {[%clk 0:02:05.9]} 13. Nd5 {[%clk 0:02:24.1]} 13... Bxd5 {[%clk
0:01:44.1]} 14. Bxd5 {[%clk 0:02:25]} 14... Bd4+ {[%clk 0:01:36.6]} 15. Kh1
{[%clk 0:02:23.9]} 15... f6 {[%clk 0:01:37.1]} 16. c3 {[%clk 0:01:49.5]} 16...
Be5 {[%clk 0:01:21.9]} 17. Bxb7 {[%clk 0:01:45.9]} 17... fxg5 {[%clk 0:01:18.8]}
18. Bxa8 {[%clk 0:01:44.7]} 18... O-O {[%clk 0:01:18]} 19. Bd5+ {[%clk
0:01:44.3]} 19... Kh8 {[%clk 0:01:17.6]} 20. Rad1 {[%clk 0:01:30.9]} 20... g4
{[%clk 0:01:15.6]} 21. Qe2 {[%clk 0:01:26.4]} 21... Ng6 {[%clk 0:01:08.5]} 22.
g3 {[%clk 0:01:23.6]} 22... Qg5 {[%clk 0:01:06.6]} 23. Qd2 {[%clk 0:01:10.3]}
23... f4 {[%clk 0:01:05.9]} 24. gxf4 {[%clk 0:01:10.4]} 24... Bxf4 {[%clk
0:01:00.9]} 25. Qe2 {[%clk 0:00:57.8]} 25... Ne5 {[%clk 0:00:56.7]} 26. Rxf4
{[%clk 0:00:42.2]} 26... Qxf4 {[%clk 0:00:54.9]} 27. Rf1 {[%clk 0:00:42.9]}
27... Qxf1+ {[%clk 0:00:54]} 0-1

[Event "Early-Titled-Tuesday-Blitz-March-19-2024"]
[Site "Chess.com"]
[Date "2024.03.19"]
[Round "10"]
[White "rikchessmx"]
[Black "Navyblue1"]
[Result "1-0"]
[WhiteElo "2287"]
[BlackElo "2218"]
[TimeControl "180+1"]
[EndTime "9:53:45 PDT"]
[Termination "rikchessmx won by resignation"]

1. e4 {[%clk 0:03:00.9]} 1... c5 {[%clk 0:02:56.6]} 2. Nf3 {[%clk 0:03:00.5]}
2... d6 {[%clk 0:02:52]} 3. d4 {[%clk 0:03:00.9]} 3... cxd4 {[%clk 0:02:45.1]}
4. Nxd4 {[%clk 0:03:01.8]} 4... Nf6 {[%clk 0:02:39.7]} 5. Nc3 {[%clk 0:03:02.3]}
5... a6 {[%clk 0:02:39]} 6. f4 {[%clk 0:03:02.2]} 6... Nc6 {[%clk 0:02:33.6]} 7.
Nb3 {[%clk 0:02:57.2]} 7... Qc7 {[%clk 0:02:31.7]} 8. Be3 {[%clk 0:02:56.6]}
8... g6 {[%clk 0:02:30.4]} 9. Bd3 {[%clk 0:02:54.5]} 9... Bg7 {[%clk 0:02:28.9]}
10. O-O {[%clk 0:02:54.4]} 10... b5 {[%clk 0:02:24.8]} 11. Qe1 {[%clk
0:02:53.1]} 11... Bb7 {[%clk 0:02:20]} 12. Kh1 {[%clk 0:02:51.8]} 12... O-O
{[%clk 0:01:58.9]} 13. Qh4 {[%clk 0:02:50.7]} 13... b4 {[%clk 0:01:58.3]} 14.
Ne2 {[%clk 0:02:49.2]} 14... a5 {[%clk 0:01:47.9]} 15. f5 {[%clk 0:02:48.8]}
15... a4 {[%clk 0:01:47.2]} 16. Nd2 {[%clk 0:02:48.3]} 16... Ne5 {[%clk
0:01:44.1]} 17. Nf3 {[%clk 0:02:41.8]} 17... Bc6 {[%clk 0:01:34.1]} 18. Nxe5
{[%clk 0:02:41.2]} 18... dxe5 {[%clk 0:01:33.6]} 19. Rf3 {[%clk 0:02:38.4]}
19... Qb7 {[%clk 0:01:20.8]} 20. Ng3 {[%clk 0:02:34.2]} 20... b3 {[%clk
0:01:06.3]} 21. cxb3 {[%clk 0:02:31.8]} 21... axb3 {[%clk 0:01:06.4]} 22. a3
{[%clk 0:02:31.5]} 22... Bb5 {[%clk 0:00:54.6]} 23. Bxb5 {[%clk 0:02:26.8]}
23... Qxb5 {[%clk 0:00:54.1]} 24. Bg5 {[%clk 0:02:22.9]} 24... Qc4 {[%clk
0:00:42.1]} 25. Rc3 {[%clk 0:02:17.2]} 25... Qd4 {[%clk 0:00:20.2]} 26. Rxb3
{[%clk 0:02:10.2]} 26... Rfd8 {[%clk 0:00:20.8]} 27. Rf1 {[%clk 0:02:01.2]}
27... Qc4 {[%clk 0:00:19]} 28. Rb7 {[%clk 0:01:57.4]} 28... Rd3 {[%clk 0:00:17]}
29. Rg1 {[%clk 0:01:53.1]} 29... Rb3 {[%clk 0:00:14.6]} 30. Rxe7 {[%clk
0:01:52]} 30... Rb6 {[%clk 0:00:13.9]} 31. Bh6 {[%clk 0:01:45.3]} 31... Bh8
{[%clk 0:00:13.3]} 32. fxg6 {[%clk 0:01:43.7]} 32... hxg6 {[%clk 0:00:12.4]} 33.
Qg5 {[%clk 0:01:39.8]} 33... Ra4 {[%clk 0:00:11.8]} 34. Qxe5 {[%clk 0:01:34.6]}
34... Nxe4 {[%clk 0:00:09.7]} 35. Re8+ {[%clk 0:01:34]} 1-0

[Event "Early-Titled-Tuesday-Blitz-March-19-2024"]
[Site "Chess.com"]
[Date "2024.03.19"]
[Round "10"]
[White "kassablanca"]
[Black "NovozhilovSemen"]
[Result "0-1"]
[WhiteElo "2747"]
[BlackElo "2643"]
[TimeControl "180+1"]
[EndTime "9:53:48 PDT"]
[Termination "NovozhilovSemen won by resignation"]

1. b3 {[%clk 0:03:00.9]} 1... a5 {[%clk 0:02:59.5]} 2. Nc3 {[%clk 0:02:58.6]}
2... g6 {[%clk 0:02:59.2]} 3. d4 {[%clk 0:02:57.9]} 3... Bg7 {[%clk 0:02:59.3]}
4. Nf3 {[%clk 0:02:56.6]} 4... Nf6 {[%clk 0:02:59.2]} 5. e4 {[%clk 0:02:56.1]}
5... c5 {[%clk 0:02:58.9]} 6. e5 {[%clk 0:02:55.6]} 6... Ng8 {[%clk 0:02:58.4]}
7. d5 {[%clk 0:02:51.9]} 7... d6 {[%clk 0:02:57.2]} 8. Bb5+ {[%clk 0:02:46]}
8... Bd7 {[%clk 0:02:51.5]} 9. Qe2 {[%clk 0:02:42.1]} 9... Bxb5 {[%clk
0:02:46.3]} 10. Qxb5+ {[%clk 0:02:29.2]} 10... Qd7 {[%clk 0:02:45.2]} 11. Bf4
{[%clk 0:02:11.2]} 11... dxe5 {[%clk 0:02:36.8]} 12. Bxe5 {[%clk 0:02:05.7]}
12... Nf6 {[%clk 0:02:36.8]} 13. O-O {[%clk 0:01:54.7]} 13... O-O {[%clk
0:02:34.8]} 14. Rad1 {[%clk 0:01:51.6]} 14... Qxb5 {[%clk 0:02:26.2]} 15. Nxb5
{[%clk 0:01:51.5]} 15... a4 {[%clk 0:02:27.1]} 16. Rfe1 {[%clk 0:01:22.8]} 16...
axb3 {[%clk 0:02:22.8]} 17. axb3 {[%clk 0:01:23]} 17... Nbd7 {[%clk 0:02:23]}
18. Bg3 {[%clk 0:00:54.7]} 18... Ra2 {[%clk 0:02:09.9]} 19. c4 {[%clk
0:00:53.6]} 19... Rb2 {[%clk 0:02:06.4]} 20. Rxe7 {[%clk 0:00:49.4]} 20... Rxb3
{[%clk 0:02:05.8]} 21. h3 {[%clk 0:00:47]} 21... Nb6 {[%clk 0:01:59]} 22. Bc7
{[%clk 0:00:26.8]} 22... Nxc4 {[%clk 0:01:56.5]} 23. Nd6 {[%clk 0:00:25.3]}
23... Nxd6 {[%clk 0:01:53.8]} 24. Bxd6 {[%clk 0:00:26.2]} 24... Rc8 {[%clk
0:01:54.3]} 25. Rc7 {[%clk 0:00:22.5]} 25... Rxc7 {[%clk 0:01:52.8]} 26. Bxc7
{[%clk 0:00:23.4]} 26... Nd7 {[%clk 0:01:48.7]} 27. Re1 {[%clk 0:00:20.5]} 27...
Bf6 {[%clk 0:01:48.7]} 28. Re8+ {[%clk 0:00:19.9]} 28... Kg7 {[%clk 0:01:48.8]}
29. g4 {[%clk 0:00:20.3]} 29... Rxf3 {[%clk 0:01:46.3]} 30. Kg2 {[%clk
0:00:19.9]} 30... Rb3 {[%clk 0:01:45.8]} 31. Bd6 {[%clk 0:00:20.1]} 31... c4
{[%clk 0:01:44.7]} 32. h4 {[%clk 0:00:19.8]} 32... Bxh4 {[%clk 0:01:43.5]} 33.
Bc5 {[%clk 0:00:16.2]} 33... Bf6 {[%clk 0:01:41.3]} 34. Be3 {[%clk 0:00:15.6]}
34... h6 {[%clk 0:01:40.2]} 35. Rc8 {[%clk 0:00:14.5]} 35... b5 {[%clk
0:01:35.9]} 36. Rc7 {[%clk 0:00:14.4]} 36... Ne5 {[%clk 0:01:36.4]} 0-1

[Event "Early-Titled-Tuesday-Blitz-March-19-2024"]
[Site "Chess.com"]
[Date "2024.03.19"]
[Round "10"]
[White "AlexOstrovskiy"]
[Black "santosalberto1987"]
[Result "1-0"]
[WhiteElo "2737"]
[BlackElo "2569"]
[TimeControl "180+1"]
[EndTime "9:54:10 PDT"]
[Termination "AlexOstrovskiy won by checkmate"]

1. e4 {[%clk 0:02:58.8]} 1... e6 {[%clk 0:03:00]} 2. d4 {[%clk 0:02:54.7]} 2...
d5 {[%clk 0:03:00.3]} 3. e5 {[%clk 0:02:54.5]} 3... c5 {[%clk 0:03:00.4]} 4. c3
{[%clk 0:02:54.5]} 4... Qb6 {[%clk 0:03:00.8]} 5. Nf3 {[%clk 0:02:53.8]} 5...
Nc6 {[%clk 0:03:01.3]} 6. Bd3 {[%clk 0:02:52.7]} 6... cxd4 {[%clk 0:03:00.8]} 7.
O-O {[%clk 0:02:53]} 7... Bd7 {[%clk 0:03:00.9]} 8. Re1 {[%clk 0:02:52.1]} 8...
Nge7 {[%clk 0:02:58.3]} 9. h4 {[%clk 0:02:47.5]} 9... Rc8 {[%clk 0:02:57.2]} 10.
a3 {[%clk 0:02:45.3]} 10... a5 {[%clk 0:02:55.7]} 11. Nbd2 {[%clk 0:02:40.1]}
11... dxc3 {[%clk 0:02:55.5]} 12. bxc3 {[%clk 0:02:41]} 12... Nf5 {[%clk
0:02:52.3]} 13. Rb1 {[%clk 0:02:37]} 13... Qc7 {[%clk 0:02:51.2]} 14. Nb3 {[%clk
0:02:24.5]} 14... a4 {[%clk 0:02:46.7]} 15. Nbd4 {[%clk 0:02:23.2]} 15... Nfxd4
{[%clk 0:02:46.6]} 16. cxd4 {[%clk 0:02:24.1]} 16... Be7 {[%clk 0:02:43.4]} 17.
h5 {[%clk 0:02:17.2]} 17... h6 {[%clk 0:02:42]} 18. Bb5 {[%clk 0:01:41]} 18...
Qa5 {[%clk 0:02:05.6]} 19. Bxa4 {[%clk 0:01:20.4]} 19... Nxe5 {[%clk 0:02:04.4]}
20. Bxd7+ {[%clk 0:01:11.2]} 20... Nxd7 {[%clk 0:02:03.7]} 21. Rxb7 {[%clk
0:01:12]} 21... Bd6 {[%clk 0:01:57.6]} 22. Nh4 {[%clk 0:00:47.4]} 22... Qa6
{[%clk 0:01:34.9]} 23. Nf5 {[%clk 0:00:46.6]} 23... O-O {[%clk 0:01:30.2]} 24.
Nxh6+ {[%clk 0:00:39.1]} 24... gxh6 {[%clk 0:01:28.6]} 25. Rxd7 {[%clk
0:00:37.9]} 25... Rfd8 {[%clk 0:01:23.1]} 26. Qg4+ {[%clk 0:00:30.5]} 26... Kf8
{[%clk 0:01:04.7]} 27. Rxf7+ {[%clk 0:00:15.9]} 27... Kxf7 {[%clk 0:00:59.3]}
28. Qg6+ {[%clk 0:00:13.1]} 28... Ke7 {[%clk 0:00:53.7]} 29. Qxe6+ {[%clk
0:00:13.3]} 29... Kf8 {[%clk 0:00:52.9]} 30. Bxh6# {[%clk 0:00:14.2]} 1-0